[Event "*** Titled Tuesday Blitz"]
[Site "Chess.com"]
[Date "2020.04.21"]
[Round "7"]
[White "1977Ivan"]
[Black "TigrVShlyape"]
[Result "0-1"]
[WhiteElo "2693"]
[BlackElo "2864"]
[TimeControl "180+1"]
[EndTime "11:22:30 PDT"]
[Termination "TigrVShlyape won by resignation"]

1. e4 {[%clk 0:03:00.9]} 1... c5 {[%clk 0:02:57.9]} 2. Nc3 {[%clk 0:02:59.9]}
2... Nc6 {[%clk 0:02:57.2]} 3. g3 {[%clk 0:03:00.4]} 3... g6 {[%clk 0:02:57.1]}
4. Bg2 {[%clk 0:03:00.8]} 4... Bg7 {[%clk 0:02:57.3]} 5. d3 {[%clk 0:03:01.4]}
5... Rb8 {[%clk 0:02:55.4]} 6. f4 {[%clk 0:02:51.8]} 6... d6 {[%clk 0:02:43.7]}
7. Nf3 {[%clk 0:02:50.3]} 7... b5 {[%clk 0:02:35.8]} 8. a3 {[%clk 0:02:48.5]}
8... e6 {[%clk 0:02:34.5]} 9. e5 {[%clk 0:02:33.1]} 9... dxe5 {[%clk 0:02:07.1]}
10. fxe5 {[%clk 0:02:32.8]} 10... Nxe5 {[%clk 0:01:59.4]} 11. Bf4 {[%clk
0:02:21.7]} 11... Nxf3+ {[%clk 0:01:50.9]} 12. Qxf3 {[%clk 0:02:21.3]} 12... Bb7
{[%clk 0:01:43.4]} 13. Ne4 {[%clk 0:02:00.7]} 13... Bxe4 {[%clk 0:01:28.3]} 14.
Qxe4 {[%clk 0:01:57.4]} 14... Rc8 {[%clk 0:01:24.1]} 15. Qb7 {[%clk 0:01:49.9]}
15... Qd7 {[%clk 0:01:21.7]} 16. O-O {[%clk 0:01:40.9]} 16... Ne7 {[%clk
0:01:16.9]} 17. Bg5 {[%clk 0:01:33.7]} 17... Nf5 {[%clk 0:01:03.7]} 18. c3
{[%clk 0:01:16.8]} 18... Nd6 {[%clk 0:00:59.3]} 19. Qxd7+ {[%clk 0:00:54.3]}
19... Kxd7 {[%clk 0:00:58.6]} 20. Be3 {[%clk 0:00:48.9]} 20... a5 {[%clk
0:00:54.6]} 21. Rad1 {[%clk 0:00:41]} 21... f5 {[%clk 0:00:50.3]} 22. Rfe1
{[%clk 0:00:38.2]} 22... e5 {[%clk 0:00:45.8]} 23. Bd5 {[%clk 0:00:37]} 23...
Bf6 {[%clk 0:00:41.3]} 24. Kg2 {[%clk 0:00:35.9]} 24... h5 {[%clk 0:00:38.7]}
25. Bf2 {[%clk 0:00:35.8]} 25... h4 {[%clk 0:00:31.7]} 26. Re2 {[%clk
0:00:35.3]} 26... hxg3 {[%clk 0:00:31.2]} 27. hxg3 {[%clk 0:00:35.6]} 27... Rh7
{[%clk 0:00:27.3]} 28. b4 {[%clk 0:00:30.4]} 28... cxb4 {[%clk 0:00:26.2]} 29.
cxb4 {[%clk 0:00:30.4]} 29... a4 {[%clk 0:00:26]} 30. Bc5 {[%clk 0:00:29.4]}
30... Ne8 {[%clk 0:00:24.3]} 31. Rde1 {[%clk 0:00:28.8]} 31... Nc7 {[%clk
0:00:24.2]} 32. Bb7 {[%clk 0:00:27.5]} 32... Rb8 {[%clk 0:00:23.1]} 33. Bf3
{[%clk 0:00:25.2]} 33... Rbh8 {[%clk 0:00:21]} 34. Rxe5 {[%clk 0:00:24.8]} 34...
Rh2+ {[%clk 0:00:19.9]} 35. Kg1 {[%clk 0:00:24.6]} 35... Bxe5 {[%clk 0:00:20.1]}
36. Rxe5 {[%clk 0:00:24.4]} 36... R2h7 {[%clk 0:00:20]} 37. d4 {[%clk
0:00:22.6]} 37... Re8 {[%clk 0:00:19.8]} 38. Rxe8 {[%clk 0:00:14.3]} 38... Nxe8
{[%clk 0:00:19.7]} 39. Bb7 {[%clk 0:00:13.2]} 39... Nd6 {[%clk 0:00:19.4]} 40.
Bd5 {[%clk 0:00:08.2]} 40... Nc4 {[%clk 0:00:18.9]} 41. Bxc4 {[%clk 0:00:03.3]}
41... bxc4 {[%clk 0:00:18.8]} 42. d5 {[%clk 0:00:03.3]} 42... c3 {[%clk
0:00:18.5]} 43. Kf2 {[%clk 0:00:03.4]} 43... c2 {[%clk 0:00:18.2]} 44. Be3
{[%clk 0:00:03]} 44... Rh1 {[%clk 0:00:18.5]} 45. b5 {[%clk 0:00:02.7]} 45...
c1=Q {[%clk 0:00:18.1]} 46. Bxc1 {[%clk 0:00:02.2]} 46... Rxc1 {[%clk 0:00:19]}
47. b6 {[%clk 0:00:02.6]} 47... Rb1 {[%clk 0:00:19.1]} 0-1

[Event "*** Titled Tuesday Blitz"]
[Site "Chess.com"]
[Date "2020.04.21"]
[Round "7"]
[White "lucasran"]
[Black "pedromartinez91"]
[Result "1-0"]
[WhiteElo "2618"]
[BlackElo "2434"]
[TimeControl "180+1"]
[EndTime "11:22:30 PDT"]
[Termination "lucasran won by resignation"]

1. Nf3 {[%clk 0:03:00.9]} 1... Nf6 {[%clk 0:02:57.2]} 2. c4 {[%clk 0:03:00.8]}
2... e6 {[%clk 0:02:55.1]} 3. g3 {[%clk 0:03:00.8]} 3... d5 {[%clk 0:02:55.6]}
4. Bg2 {[%clk 0:03:01.7]} 4... Be7 {[%clk 0:02:54.3]} 5. O-O {[%clk 0:03:01.9]}
5... O-O {[%clk 0:02:54.9]} 6. b3 {[%clk 0:03:02.4]} 6... c5 {[%clk 0:02:53.3]}
7. cxd5 {[%clk 0:03:02.5]} 7... Nxd5 {[%clk 0:02:52.2]} 8. Bb2 {[%clk
0:03:02.2]} 8... Bf6 {[%clk 0:02:51.9]} 9. d4 {[%clk 0:03:01.1]} 9... Nc6 {[%clk
0:02:51.8]} 10. e4 {[%clk 0:03:01.2]} 10... Nc7 {[%clk 0:02:47.1]} 11. e5 {[%clk
0:02:56.4]} 11... Be7 {[%clk 0:02:47.1]} 12. Qe2 {[%clk 0:02:54.2]} 12... Nxd4
{[%clk 0:02:45.1]} 13. Nxd4 {[%clk 0:02:53.3]} 13... cxd4 {[%clk 0:02:46]} 14.
Rd1 {[%clk 0:02:52.7]} 14... Bc5 {[%clk 0:02:32.7]} 15. Nd2 {[%clk 0:02:50.2]}
15... d3 {[%clk 0:02:27.1]} 16. Qe1 {[%clk 0:02:50]} 16... Bd4 {[%clk
0:02:20.7]} 17. Nc4 {[%clk 0:02:17]} 17... Bxb2 {[%clk 0:02:16.4]} 18. Nxb2
{[%clk 0:02:17.9]} 18... Nd5 {[%clk 0:02:12]} 19. Rxd3 {[%clk 0:02:15.9]} 19...
Bd7 {[%clk 0:02:12.4]} 20. Bxd5 {[%clk 0:02:08.5]} 20... exd5 {[%clk 0:02:12.6]}
21. Rxd5 {[%clk 0:02:09.4]} 21... Qe7 {[%clk 0:02:10.8]} 22. Nc4 {[%clk
0:02:06.1]} 22... Bc6 {[%clk 0:02:05.3]} 23. Rd4 {[%clk 0:02:02]} 23... Qc5
{[%clk 0:02:01.4]} 24. Rad1 {[%clk 0:01:58.5]} 24... Rfe8 {[%clk 0:01:55.3]} 25.
b4 {[%clk 0:01:46.1]} 25... Qb5 {[%clk 0:01:45.2]} 26. Nd6 {[%clk 0:01:41.8]}
26... Qa4 {[%clk 0:01:26.7]} 27. Nxe8 {[%clk 0:01:39.3]} 27... Rxe8 {[%clk
0:01:26.8]} 28. Rd8 {[%clk 0:00:47.9]} 28... Bf3 {[%clk 0:01:20.9]} 29. R1d7
{[%clk 0:00:22.9]} 29... Kf8 {[%clk 0:01:06.4]} 30. Qd2 {[%clk 0:00:22.4]} 30...
Qc6 {[%clk 0:00:33.7]} 31. Qd6+ {[%clk 0:00:14.1]} 31... Qxd6 {[%clk 0:00:33.4]}
32. exd6 {[%clk 0:00:11]} 32... Bd5 {[%clk 0:00:32.7]} 33. Rxe8+ {[%clk
0:00:11.1]} 33... Kxe8 {[%clk 0:00:33]} 34. Re7+ {[%clk 0:00:11.6]} 34... Kd8
{[%clk 0:00:32.8]} 35. a3 {[%clk 0:00:12.2]} 35... h5 {[%clk 0:00:30.4]} 36. f4
{[%clk 0:00:12.5]} 36... g6 {[%clk 0:00:29.4]} 37. Kf2 {[%clk 0:00:12.8]} 37...
a6 {[%clk 0:00:28.9]} 38. Ke3 {[%clk 0:00:13.2]} 38... b5 {[%clk 0:00:29.1]} 39.
Kd4 {[%clk 0:00:13.4]} 39... Be6 {[%clk 0:00:28.8]} 40. Kc5 {[%clk 0:00:13.6]}
40... h4 {[%clk 0:00:28.2]} 41. gxh4 {[%clk 0:00:13.1]} 41... f5 {[%clk
0:00:25.4]} 42. Rxe6 {[%clk 0:00:12]} 1-0

[Event "*** Titled Tuesday Blitz"]
[Site "Chess.com"]
[Date "2020.04.21"]
[Round "7"]
[White "claudyna16"]
[Black "Chichin_chao"]
[Result "1-0"]
[WhiteElo "2522"]
[BlackElo "2365"]
[TimeControl "180+1"]
[EndTime "11:22:30 PDT"]
[Termination "claudyna16 won by resignation"]

1. c4 {[%clk 0:00:43.4]} 1... Nf6 {[%clk 0:03:00.9]} 2. g3 {[%clk 0:00:43.5]}
2... d6 {[%clk 0:02:58.5]} 3. Bg2 {[%clk 0:00:44.4]} 3... Nbd7 {[%clk
0:02:58.9]} 4. Nc3 {[%clk 0:00:44.8]} 4... e5 {[%clk 0:02:59.2]} 5. e3 {[%clk
0:00:45.7]} 5... Be7 {[%clk 0:02:59.4]} 6. Nge2 {[%clk 0:00:46.6]} 6... O-O
{[%clk 0:02:59.5]} 7. d3 {[%clk 0:00:47.5]} 7... c6 {[%clk 0:02:59.4]} 8. O-O
{[%clk 0:00:48.4]} 8... Ne8 {[%clk 0:02:59.1]} 9. h3 {[%clk 0:00:49.1]} 9... f5
{[%clk 0:02:59.1]} 10. b4 {[%clk 0:00:49.3]} 10... Nef6 {[%clk 0:02:56.7]} 11.
Rb1 {[%clk 0:00:49.4]} 11... Kh8 {[%clk 0:02:54.6]} 12. b5 {[%clk 0:00:49.7]}
12... c5 {[%clk 0:02:49.1]} 13. f4 {[%clk 0:00:48.4]} 13... g6 {[%clk
0:02:27.9]} 14. a4 {[%clk 0:00:47.7]} 14... Rb8 {[%clk 0:02:27.1]} 15. fxe5
{[%clk 0:00:41.3]} 15... dxe5 {[%clk 0:02:21.6]} 16. e4 {[%clk 0:00:39.2]} 16...
Nb6 {[%clk 0:02:08.5]} 17. a5 {[%clk 0:00:38.7]} 17... Na8 {[%clk 0:02:01.5]}
18. Ra1 {[%clk 0:00:38.4]} 18... Nc7 {[%clk 0:01:57.4]} 19. Nd5 {[%clk
0:00:38.1]} 19... fxe4 {[%clk 0:01:47.2]} 20. dxe4 {[%clk 0:00:38.1]} 20... Ne6
{[%clk 0:01:46.7]} 21. a6 {[%clk 0:00:34.5]} 21... b6 {[%clk 0:01:45]} 22. Bb2
{[%clk 0:00:34.5]} 22... Nd4 {[%clk 0:01:44]} 23. Nxd4 {[%clk 0:00:34.2]} 23...
cxd4 {[%clk 0:01:39.1]} 24. Nxe7 {[%clk 0:00:33.9]} 24... Qxe7 {[%clk
0:01:37.9]} 25. Ba3 {[%clk 0:00:34.8]} 25... Qd8 {[%clk 0:01:35.5]} 26. Bxf8
{[%clk 0:00:35.1]} 26... Qxf8 {[%clk 0:01:36.4]} 27. Qf3 {[%clk 0:00:33.3]}
27... Kg7 {[%clk 0:01:36.3]} 28. g4 {[%clk 0:00:33.4]} 28... h6 {[%clk
0:01:34.8]} 29. Qg3 {[%clk 0:00:33.5]} 29... Qe7 {[%clk 0:01:20.2]} 30. Rf2
{[%clk 0:00:33.7]} 30... Bd7 {[%clk 0:01:11.3]} 31. Rc1 {[%clk 0:00:33.9]} 31...
Rf8 {[%clk 0:01:04.8]} 32. Qb3 {[%clk 0:00:32.9]} 32... Qc5 {[%clk 0:01:04.4]}
33. Kh2 {[%clk 0:00:31.9]} 33... Be6 {[%clk 0:01:04.2]} 34. Rff1 {[%clk
0:00:31.2]} 34... Ne8 {[%clk 0:00:59.7]} 35. Rxf8 {[%clk 0:00:30.3]} 35... Kxf8
{[%clk 0:01:00.6]} 36. Qg3 {[%clk 0:00:29.3]} 36... g5 {[%clk 0:00:57.4]} 37.
Qf2+ {[%clk 0:00:28.8]} 37... Kg7 {[%clk 0:00:54]} 38. Bf1 {[%clk 0:00:29.2]}
38... Nd6 {[%clk 0:00:44.2]} 39. Bd3 {[%clk 0:00:29.3]} 39... Nc8 {[%clk
0:00:29.8]} 40. Rf1 {[%clk 0:00:29.3]} 40... Qe7 {[%clk 0:00:28.8]} 41. Qg3
{[%clk 0:00:29.6]} 41... Bf7 {[%clk 0:00:22.5]} 42. Rf5 {[%clk 0:00:29.3]} 42...
Nd6 {[%clk 0:00:17.5]} 43. Rxe5 {[%clk 0:00:29.6]} 43... Qf6 {[%clk 0:00:15.8]}
44. Kg2 {[%clk 0:00:28.6]} 44... Bxc4 {[%clk 0:00:12.3]} 45. Bxc4 {[%clk
0:00:27.1]} 45... Nxc4 {[%clk 0:00:13.2]} 46. Re8 {[%clk 0:00:25.7]} 46... Ne3+
{[%clk 0:00:12.6]} 47. Kh2 {[%clk 0:00:26]} 47... Qf1 {[%clk 0:00:12.9]} 48.
Qc7+ {[%clk 0:00:23.2]} 48... Kf6 {[%clk 0:00:08.4]} 49. Rf8+ {[%clk 0:00:23.4]}
49... Ke6 {[%clk 0:00:08.6]} 50. Rxf1 {[%clk 0:00:19.9]} 1-0

[Event "*** Titled Tuesday Blitz"]
[Site "Chess.com"]
[Date "2020.04.21"]
[Round "7"]
[White "Frogo47"]
[Black "queen_iryna"]
[Result "0-1"]
[WhiteElo "2454"]
[BlackElo "2292"]
[TimeControl "180+1"]
[EndTime "11:22:30 PDT"]
[Termination "queen_iryna won by checkmate"]

1. e4 {[%clk 0:03:00.9]} 1... d6 {[%clk 0:03:00.2]} 2. d4 {[%clk 0:03:00.5]}
2... Nf6 {[%clk 0:03:00.4]} 3. Nc3 {[%clk 0:03:00.7]} 3... e5 {[%clk 0:02:59.6]}
4. Nf3 {[%clk 0:02:58.9]} 4... Nbd7 {[%clk 0:02:59]} 5. Bc4 {[%clk 0:02:58.4]}
5... Be7 {[%clk 0:02:58.9]} 6. O-O {[%clk 0:02:58.4]} 6... O-O {[%clk
0:02:58.2]} 7. Re1 {[%clk 0:02:58.6]} 7... c6 {[%clk 0:02:58.1]} 8. a4 {[%clk
0:02:58.7]} 8... h6 {[%clk 0:02:58.4]} 9. h3 {[%clk 0:02:58.9]} 9... Re8 {[%clk
0:02:58.5]} 10. Be3 {[%clk 0:02:57.8]} 10... Bf8 {[%clk 0:02:49.8]} 11. Ba2
{[%clk 0:02:54.1]} 11... exd4 {[%clk 0:02:45.4]} 12. Bxd4 {[%clk 0:02:33.3]}
12... Ne5 {[%clk 0:02:43.6]} 13. Bxe5 {[%clk 0:02:28]} 13... dxe5 {[%clk
0:02:42.1]} 14. Qxd8 {[%clk 0:02:28.4]} 14... Rxd8 {[%clk 0:02:42.4]} 15. Nxe5
{[%clk 0:02:28.6]} 15... Be6 {[%clk 0:02:43]} 16. Bxe6 {[%clk 0:02:27.7]} 16...
fxe6 {[%clk 0:02:43.9]} 17. Rad1 {[%clk 0:02:20.7]} 17... Bb4 {[%clk 0:02:43.5]}
18. f3 {[%clk 0:02:20.9]} 18... Bc5+ {[%clk 0:02:21.9]} 19. Kf1 {[%clk
0:02:13.8]} 19... Bd4 {[%clk 0:02:20.8]} 20. Nd3 {[%clk 0:01:59.6]} 20... Nh5
{[%clk 0:02:18]} 21. g4 {[%clk 0:01:59.1]} 21... Nf6 {[%clk 0:02:09.6]} 22. Kg2
{[%clk 0:01:54.4]} 22... Kf7 {[%clk 0:02:07.8]} 23. Ne2 {[%clk 0:01:51.3]} 23...
Bb6 {[%clk 0:02:00.9]} 24. Ne5+ {[%clk 0:01:46.7]} 24... Ke7 {[%clk 0:01:59]}
25. Nc4 {[%clk 0:01:46.9]} 25... Bc7 {[%clk 0:01:54.2]} 26. Nc3 {[%clk 0:01:35]}
26... Nd7 {[%clk 0:01:43.4]} 27. e5 {[%clk 0:01:14.8]} 27... Nf8 {[%clk
0:01:23.1]} 28. f4 {[%clk 0:01:08.7]} 28... Ng6 {[%clk 0:01:15.7]} 29. Kg3
{[%clk 0:01:03.4]} 29... Rxd1 {[%clk 0:01:14]} 30. Rxd1 {[%clk 0:01:02.7]} 30...
Rf8 {[%clk 0:01:14.9]} 31. Ne2 {[%clk 0:00:54.5]} 31... b5 {[%clk 0:01:13.7]}
32. axb5 {[%clk 0:00:53.4]} 32... cxb5 {[%clk 0:01:13.7]} 33. Nd6 {[%clk
0:00:53.9]} 33... a6 {[%clk 0:01:05.7]} 34. Ne4 {[%clk 0:00:41.2]} 34... Nxf4
{[%clk 0:01:01.5]} 35. Nxf4 {[%clk 0:00:38.4]} 35... Bxe5 {[%clk 0:01:01.5]} 36.
Nc5 {[%clk 0:00:32.7]} 36... Bxf4+ {[%clk 0:01:00.1]} 37. Kg2 {[%clk 0:00:31.9]}
37... Bd6 {[%clk 0:00:47]} 38. Ne4 {[%clk 0:00:27.6]} 38... Be5 {[%clk
0:00:43.8]} 39. b4 {[%clk 0:00:25.1]} 39... Rd8 {[%clk 0:00:43.3]} 40. Rxd8
{[%clk 0:00:20.6]} 40... Kxd8 {[%clk 0:00:44.2]} 41. Nc5 {[%clk 0:00:21.2]}
41... Bd6 {[%clk 0:00:42.2]} 42. Nxa6 {[%clk 0:00:14.7]} 42... Kc8 {[%clk
0:00:41.4]} 43. Kf3 {[%clk 0:00:14.5]} 43... Kb7 {[%clk 0:00:41.4]} 44. Nc5+
{[%clk 0:00:14.6]} 44... Bxc5 {[%clk 0:00:41.3]} 45. bxc5 {[%clk 0:00:15.5]}
45... Kc6 {[%clk 0:00:41.7]} 46. Ke4 {[%clk 0:00:16.4]} 46... Kxc5 {[%clk
0:00:42.1]} 47. Ke5 {[%clk 0:00:17.3]} 47... Kc4 {[%clk 0:00:42.4]} 48. Kxe6
{[%clk 0:00:17.7]} 48... Kc3 {[%clk 0:00:42.7]} 49. Kf7 {[%clk 0:00:18.6]} 49...
Kxc2 {[%clk 0:00:42.8]} 50. Kxg7 {[%clk 0:00:19.5]} 50... b4 {[%clk 0:00:43.4]}
51. h4 {[%clk 0:00:20.4]} 51... b3 {[%clk 0:00:44.3]} 52. g5 {[%clk 0:00:21.3]}
52... b2 {[%clk 0:00:45.2]} 53. gxh6 {[%clk 0:00:21.9]} 53... b1=Q {[%clk
0:00:46.1]} 54. h7 {[%clk 0:00:22.1]} 54... Qb2+ {[%clk 0:00:45.5]} 55. Kg8
{[%clk 0:00:21.7]} 55... Qb8+ {[%clk 0:00:45.4]} 56. Kg7 {[%clk 0:00:21.5]}
56... Qc7+ {[%clk 0:00:45.6]} 57. Kg8 {[%clk 0:00:21.7]} 57... Qd8+ {[%clk
0:00:45.7]} 58. Kg7 {[%clk 0:00:21.8]} 58... Qe7+ {[%clk 0:00:45.7]} 59. Kg8
{[%clk 0:00:22.1]} 59... Qe6+ {[%clk 0:00:43.4]} 60. Kg7 {[%clk 0:00:22.3]}
60... Qg4+ {[%clk 0:00:43]} 61. Kh8 {[%clk 0:00:20.7]} 61... Qg6 {[%clk
0:00:40.5]} 62. h5 {[%clk 0:00:20.2]} 62... Qf7 {[%clk 0:00:40.6]} 63. h6 {[%clk
0:00:16.3]} 63... Qf8# {[%clk 0:00:40.7]} 0-1

[Event "*** Titled Tuesday Blitz"]
[Site "Chess.com"]
[Date "2020.04.21"]
[Round "7"]
[White "cassoulet"]
[Black "2L8IWUN"]
[Result "0-1"]
[WhiteElo "2634"]
[BlackElo "2468"]
[TimeControl "180+1"]
[EndTime "11:22:32 PDT"]
[Termination "2L8IWUN won by resignation"]

1. e4 {[%clk 0:03:00.9]} 1... c5 {[%clk 0:02:57.7]} 2. Nf3 {[%clk 0:03:00.2]}
2... d6 {[%clk 0:02:50.6]} 3. d4 {[%clk 0:03:00.1]} 3... cxd4 {[%clk 0:02:51.5]}
4. Nxd4 {[%clk 0:03:00.6]} 4... Nf6 {[%clk 0:02:52.4]} 5. Nc3 {[%clk 0:03:00.9]}
5... Nc6 {[%clk 0:02:53]} 6. Bc4 {[%clk 0:02:58.6]} 6... Bd7 {[%clk 0:02:52.3]}
7. Bb3 {[%clk 0:02:58.3]} 7... Rc8 {[%clk 0:02:49]} 8. O-O {[%clk 0:02:58.1]}
8... g6 {[%clk 0:02:48.3]} 9. Bg5 {[%clk 0:02:55]} 9... Bg7 {[%clk 0:02:48.6]}
10. Nxc6 {[%clk 0:02:54.3]} 10... Bxc6 {[%clk 0:02:47.4]} 11. Qd2 {[%clk
0:02:47]} 11... O-O {[%clk 0:02:36.7]} 12. Rfe1 {[%clk 0:02:46]} 12... b5 {[%clk
0:02:34.8]} 13. Bh6 {[%clk 0:02:45.3]} 13... b4 {[%clk 0:02:29.1]} 14. Nd5
{[%clk 0:02:41.7]} 14... Bxh6 {[%clk 0:02:17.2]} 15. Nxf6+ {[%clk 0:02:38.1]}
15... exf6 {[%clk 0:02:15.1]} 16. Qxh6 {[%clk 0:02:37.3]} 16... Re8 {[%clk
0:02:11.4]} 17. Re3 {[%clk 0:02:30.1]} 17... Bd7 {[%clk 0:02:08.6]} 18. Rd1
{[%clk 0:02:23.2]} 18... Qe7 {[%clk 0:02:02.4]} 19. Red3 {[%clk 0:02:11.9]}
19... Qxe4 {[%clk 0:01:59.7]} 20. h3 {[%clk 0:01:54.5]} 20... Be6 {[%clk
0:01:55]} 21. Rxd6 {[%clk 0:01:35.3]} 21... Bxb3 {[%clk 0:01:52.9]} 22. cxb3
{[%clk 0:01:36.2]} 22... Rc2 {[%clk 0:01:49]} 23. Rxf6 {[%clk 0:01:34.5]} 23...
Rxb2 {[%clk 0:01:48.4]} 24. Rf3 {[%clk 0:01:22.2]} 24... Rxa2 {[%clk 0:01:45.5]}
25. Re3 {[%clk 0:01:05.7]} 25... Qc6 {[%clk 0:01:38.8]} 26. Rxe8+ {[%clk
0:01:01.2]} 26... Qxe8 {[%clk 0:01:39.7]} 27. Qg5 {[%clk 0:01:01.5]} 27... Kg7
{[%clk 0:01:20.6]} 28. Qf4 {[%clk 0:01:01.5]} 28... a5 {[%clk 0:01:11.6]} 29.
Qd4+ {[%clk 0:00:58.1]} 29... Kg8 {[%clk 0:01:09.8]} 30. Qf6 {[%clk 0:00:58.3]}
30... Rd2 {[%clk 0:00:55.1]} 31. Rxd2 {[%clk 0:00:48.7]} 31... Qe1+ {[%clk
0:00:54.5]} 32. Kh2 {[%clk 0:00:49.6]} 32... Qxd2 {[%clk 0:00:54.1]} 33. Qe5
{[%clk 0:00:50.1]} 33... Qxf2 {[%clk 0:00:49.6]} 34. Qe8+ {[%clk 0:00:49.4]}
34... Kg7 {[%clk 0:00:47.3]} 35. Qe5+ {[%clk 0:00:50.3]} 35... Qf6 {[%clk
0:00:44.4]} 36. Qxa5 {[%clk 0:00:51.2]} 36... Qf4+ {[%clk 0:00:40.8]} 37. Kh1
{[%clk 0:00:50.8]} 37... Qd4 {[%clk 0:00:40]} 38. Qa2 {[%clk 0:00:49.1]} 38...
h5 {[%clk 0:00:39.8]} 39. Qc2 {[%clk 0:00:48.6]} 39... h4 {[%clk 0:00:37.6]} 40.
Qe2 {[%clk 0:00:43.2]} 40... Qc3 {[%clk 0:00:35]} 41. Qd1 {[%clk 0:00:43.3]}
41... g5 {[%clk 0:00:33.4]} 42. Qd5 {[%clk 0:00:42.3]} 42... f6 {[%clk 0:00:31]}
43. Qd7+ {[%clk 0:00:42]} 43... Kg6 {[%clk 0:00:29.7]} 44. Qe8+ {[%clk
0:00:42.3]} 44... Kf5 {[%clk 0:00:28.5]} 45. Qd7+ {[%clk 0:00:42.5]} 45... Kf4
{[%clk 0:00:26.2]} 46. Qd6+ {[%clk 0:00:41.5]} 46... Ke3 {[%clk 0:00:20.7]} 47.
Qe6+ {[%clk 0:00:34]} 47... Kd2 {[%clk 0:00:19.3]} 48. Kg1 {[%clk 0:00:30]}
48... Qe3+ {[%clk 0:00:17.2]} 49. Qxe3+ {[%clk 0:00:28.6]} 49... Kxe3 {[%clk
0:00:18.1]} 50. Kf1 {[%clk 0:00:27.6]} 50... Kd3 {[%clk 0:00:17.1]} 51. Kf2
{[%clk 0:00:28.5]} 51... Kc3 {[%clk 0:00:17.6]} 52. Kf3 {[%clk 0:00:29.4]} 52...
Kxb3 {[%clk 0:00:18.5]} 53. Kg4 {[%clk 0:00:30.3]} 53... Kc2 {[%clk 0:00:18.5]}
54. Kf5 {[%clk 0:00:31.2]} 54... b3 {[%clk 0:00:18.9]} 55. Kxf6 {[%clk
0:00:32.1]} 55... b2 {[%clk 0:00:19.3]} 56. Kxg5 {[%clk 0:00:33]} 56... b1=Q
{[%clk 0:00:20]} 57. Kxh4 {[%clk 0:00:33.9]} 57... Qe1+ {[%clk 0:00:19.6]} 58.
g3 {[%clk 0:00:34]} 58... Qe7+ {[%clk 0:00:19.6]} 59. Kh5 {[%clk 0:00:34.1]}
59... Qg7 {[%clk 0:00:20]} 60. g4 {[%clk 0:00:34.1]} 60... Kd3 {[%clk
0:00:20.6]} 61. g5 {[%clk 0:00:33.9]} 61... Ke4 {[%clk 0:00:20.7]} 62. h4 {[%clk
0:00:34.3]} 62... Ke5 {[%clk 0:00:17]} 63. Kg4 {[%clk 0:00:35.2]} 63... Ke6
{[%clk 0:00:16]} 64. h5 {[%clk 0:00:35.6]} 64... Qd4+ {[%clk 0:00:16]} 65. Kg3
{[%clk 0:00:35.4]} 65... Kf5 {[%clk 0:00:16.5]} 66. h6 {[%clk 0:00:35.9]} 66...
Kxg5 {[%clk 0:00:16.3]} 0-1

[Event "*** Titled Tuesday Blitz"]
[Site "Chess.com"]
[Date "2020.04.21"]
[Round "7"]
[White "Andrei_Belozerov"]
[Black "adiosabu"]
[Result "1/2-1/2"]
[WhiteElo "2584"]
[BlackElo "2429"]
[TimeControl "180+1"]
[EndTime "11:22:32 PDT"]
[Termination "Game drawn by repetition"]

1. e4 {[%clk 0:03:00.9]} 1... c5 {[%clk 0:02:58.2]} 2. Nf3 {[%clk 0:03:00.5]}
2... Nc6 {[%clk 0:02:58.8]} 3. d4 {[%clk 0:03:00.5]} 3... cxd4 {[%clk
0:02:59.7]} 4. Nxd4 {[%clk 0:03:00.8]} 4... e5 {[%clk 0:03:00.4]} 5. Nb5 {[%clk
0:02:59.5]} 5... a6 {[%clk 0:03:01]} 6. Nd6+ {[%clk 0:02:59]} 6... Bxd6 {[%clk
0:03:01.6]} 7. Qxd6 {[%clk 0:02:59.3]} 7... Qe7 {[%clk 0:03:02.4]} 8. Qxe7+
{[%clk 0:02:54]} 8... Ngxe7 {[%clk 0:03:03.3]} 9. Nc3 {[%clk 0:02:53.8]} 9... d5
{[%clk 0:03:03.7]} 10. exd5 {[%clk 0:02:38.7]} 10... Nb4 {[%clk 0:03:03.5]} 11.
Bd3 {[%clk 0:02:33.7]} 11... Bf5 {[%clk 0:03:02.8]} 12. Bxf5 {[%clk 0:02:19.3]}
12... Nxf5 {[%clk 0:03:00.8]} 13. Kd1 {[%clk 0:01:58.4]} 13... O-O-O {[%clk
0:02:56.7]} 14. Be3 {[%clk 0:01:58]} 14... Nxe3+ {[%clk 0:02:19.4]} 15. fxe3
{[%clk 0:01:57.3]} 15... Nxd5 {[%clk 0:02:19.8]} 16. Nxd5 {[%clk 0:01:57.8]}
16... Rxd5+ {[%clk 0:02:19.3]} 17. Ke2 {[%clk 0:01:58.3]} 17... Rhd8 {[%clk
0:02:17.3]} 18. Rad1 {[%clk 0:01:57]} 18... Kc7 {[%clk 0:02:16.2]} 19. Rxd5
{[%clk 0:01:56.2]} 19... Rxd5 {[%clk 0:02:15.7]} 20. g4 {[%clk 0:01:53.1]} 20...
Kd6 {[%clk 0:01:47.4]} 21. c4 {[%clk 0:01:51.9]} 21... Ra5 {[%clk 0:01:45.1]}
22. a3 {[%clk 0:01:51.8]} 22... Ke6 {[%clk 0:01:41.8]} 23. Rd1 {[%clk
0:01:46.4]} 23... Rc5 {[%clk 0:01:41.2]} 24. b3 {[%clk 0:01:46.1]} 24... b5
{[%clk 0:01:40.3]} 25. cxb5 {[%clk 0:01:45.8]} 25... axb5 {[%clk 0:01:40]} 26.
a4 {[%clk 0:01:41.6]} 26... bxa4 {[%clk 0:01:37.7]} 27. bxa4 {[%clk 0:01:41.5]}
27... Rc4 {[%clk 0:01:37.8]} 28. Ra1 {[%clk 0:01:40.9]} 28... Rxg4 {[%clk
0:01:36.5]} 29. a5 {[%clk 0:01:41]} 29... Rc4 {[%clk 0:01:32.1]} 30. a6 {[%clk
0:01:40.1]} 30... Rc8 {[%clk 0:01:32.4]} 31. a7 {[%clk 0:01:30.3]} 31... Ra8
{[%clk 0:01:31]} 32. Kd3 {[%clk 0:01:29.6]} 32... Kf5 {[%clk 0:01:24.9]} 33. e4+
{[%clk 0:01:18.8]} 33... Kg5 {[%clk 0:01:19.7]} 34. Kc4 {[%clk 0:01:16.8]} 34...
f6 {[%clk 0:01:13.9]} 35. Kd5 {[%clk 0:01:15.3]} 35... h5 {[%clk 0:01:09.4]} 36.
Kc6 {[%clk 0:01:06.1]} 36... Kf4 {[%clk 0:01:08.9]} 37. Ra4 {[%clk 0:01:03.6]}
37... g5 {[%clk 0:01:00.9]} 38. Kb7 {[%clk 0:01:02.8]} 38... Rxa7+ {[%clk
0:01:01.3]} 39. Kxa7 {[%clk 0:01:02.6]} 39... g4 {[%clk 0:01:00.5]} 40. Kb6
{[%clk 0:01:02.5]} 40... h4 {[%clk 0:00:56.8]} 41. Kc5 {[%clk 0:01:02.2]} 41...
g3 {[%clk 0:00:57]} 42. hxg3+ {[%clk 0:01:01.7]} 42... hxg3 {[%clk 0:00:57]} 43.
Kd5 {[%clk 0:01:01.7]} 43... g2 {[%clk 0:00:38.9]} 44. Ra1 {[%clk 0:00:52.8]}
44... Ke3 {[%clk 0:00:38.9]} 45. Rb1 {[%clk 0:00:33.7]} 45... Kf3 {[%clk
0:00:37.3]} 46. Rc1 {[%clk 0:00:32.1]} 46... Ke3 {[%clk 0:00:36.7]} 47. Rb1
{[%clk 0:00:21.4]} 47... Kf3 {[%clk 0:00:35.8]} 48. Rb3+ {[%clk 0:00:19.8]}
48... Kf4 {[%clk 0:00:19.5]} 49. Rb1 {[%clk 0:00:19.4]} 49... Ke3 {[%clk
0:00:19.4]} 50. Ra1 {[%clk 0:00:18.3]} 50... Kf3 {[%clk 0:00:19.2]} 51. Rc1
{[%clk 0:00:17.7]} 51... Ke3 {[%clk 0:00:19.1]} 52. Rc3+ {[%clk 0:00:16]} 52...
Kf4 {[%clk 0:00:18.6]} 53. Rc1 {[%clk 0:00:15.6]} 53... Ke3 {[%clk 0:00:16.9]}
1/2-1/2